[Event "LAT-ch Women 2017"]
[Site "Riga"]
[Date "2017.10.08"]
[Round "4"]
[White "Limanovska, Elizabete"]
[Black "Vainovska, Valentina"]
[Result "1-0"]
[ECO "B38"]
[WhiteElo "1972"]
[BlackElo "1676"]
[Annotator "NA RC"]
[PlyCount "71"]
[EventDate "2017.??.??"]
[EventType "swiss"]
[EventCountry "LAT"]
[SourceTitle "playchess.com"]
[Source "ChessBase"]
[SourceQuality "1"]
[TimeControl "5400+30"]

{[%evp 16,61,46,41,50,51,43,46,44,34,45,25,36,34,33,23,29,0,3,0,0,-19,-22,-20,43,39,16,28,52,79,64,35,106,93,273,129,366,377,461,464,632,607,696,764,961,965,29987,29988]} 1. e4 {[%emt 0:00:00]} c5 {[%emt 0:00:18]} 2. Nf3 {[%emt 0:00:00]} Nc6 {[%emt 0:00:06]} 3. d4 {[%emt 0:00:00]} cxd4 {[%emt 0:00:07]} 4. Nxd4 {[%emt 0:00:01]} g6 {[%emt 0:00:27]} 5. c4 {[%emt 0:01:24]} Bg7 {[%emt 0:01:02]} 6. Be3 {[%emt 0:00:23]} Nf6 {[%emt 0:01:31]} 7. Nc3 {[%emt 0:00:16]} d6 {[%emt 0:01:22]} 8. Be2 {[%emt 0:01:32]} O-O {[%emt 0:01:11]} 9. O-O {[%emt 0:01:22]} Bd7 {[%emt 0:01:56]} 10. Rc1 {[%emt 0:07:36]} Nxd4 {[%emt 0:07:05]} 11. Bxd4 {[%emt 0:00:23]} Bc6 {[%emt 0:00:26]} 12. Qd3 {[%emt 0:04:34]} a5 {[%emt 0:07:29]} 13. f4 {[%emt 0:09:07]} Nd7 {[%emt 0:11:36] B38: Sicilian: Maroczy Bind with 5...Bg7 and 7...0-0} 14. Bxg7 {[%emt 0:05:01]} Kxg7 {[%emt 0:00:06] LiveBook: 4 Games} 15. Kh1 {[%emt 0:00:34]} Nc5 {[%emt 0:07:21]} (15... Qb6 16. Qd2 Rad8 17. b3 Nf6 18. Bf3 Rfe8 19. Nd5 Bxd5 20. cxd5 e5 {0-1 (38) Djuric,S (2459)-Ni,H (2638) Dubai 2005}) 16. Qd4+ {[%emt 0:03:04]} f6 {[%emt 0:04:11]} 17. e5 $146 {[%emt 0:11:39]} ({Predecessor:} 17. Rcd1 Qb8 18. Nd5 e6 19. Nc3 e5 20. fxe5 fxe5 21. Rxf8 Kxf8 {1-0 (97) Garcia Padron,J (2385)-Bellon Lopez,J (2370) Santa Catalina 1987}) 17... Ne6 {[%emt 0:07:36]} 18. Qe3 {[%emt 0:00:38]} dxe5 $1 {[%emt 0:01:54]} 19. fxe5 {[%emt 0:03:58]} f5 {[%emt 0:02:52]} (19... Qd4 $11 20. exf6+ Rxf6 21. Qxd4 Nxd4) 20. Rcd1 {[%emt 0:04:59]} f4 {[%emt 0:04:53]} 21. Qf2 {[%emt 0:08:42]} Qe8 {[%emt 0:07:38]} 22. Nd5 {[%emt 0:02:29]} h5 {[%emt 0:08:53]} 23. Qh4 {[%emt 0:03:28]} Rf5 {[%emt 0:05:24]} (23... Rd8 $11 {remains equal.}) 24. Bd3 {[%emt 0:07:15]} ({Not} 24. Nxf4 $2 Nxf4 25. Rxf4 g5 $19) ({Much weaker is} 24. Nxe7 $6 Bxg2+ 25. Kxg2 Rg5+ 26. Kh1 Qxe7 $11) 24... g5 $2 {[%emt 0:05:42] [#]} (24... Rg5 $14) 25. Qe1 {[%emt 0:00:19]} (25. Qh3 $1 $18 {[%cal Rh3f5] is the precise move to win.} Rxe5 26. Bc2) 25... Rf7 $2 {[%emt 0:00:43]} (25... Rf8 26. h4 (26. Qe4 Rh8 $16) 26... Qf7) 26. Qe4 {[%emt 0:00:57]} Kf8 {[%emt 0:07:03]} 27. Qg6 {[%emt 0:02:02]} Bxd5 {[%emt 0:02:59]} 28. cxd5 {[%emt 0:01:17]} Nc5 {[%emt 0:01:50]} 29. Qxg5 {[%emt 0:02:11]} Nxd3 {[%emt 0:00:34]} 30. Rxd3 {[%emt 0:00:06]} Rc8 {[%emt 0:00:26]} 31. Qxh5 {[%emt 0:00:44]} Rg7 {[%emt 0:00:38]} 32. Qh8+ {[%emt 0:00:44]} Rg8 {[%emt 0:00:36]} 33. Rxf4+ {[%emt 0:00:29]} Qf7 {[%emt 0:00:08]} 34. Rxf7+ {[%emt 0:00:04]} Kxf7 {[%emt 0:00:06]} 35. Qh5+ {[%emt 0:00:06]} Rg6 {[%emt 0:00:14]} 36. Qf5+ {[%emt 0:00:17] Ra8} 1-0

[Event "LAT-ch Women 2017"]
[Site "Riga"]
[Date "2017.10.08"]
[Round "4"]
[White "Parhomenko, Margarita"]
[Black "Lazdina, Ingrida"]
[Result "1/2-1/2"]
[ECO "D05"]
[WhiteElo "1919"]
[BlackElo "1937"]
[Annotator "NA"]
[PlyCount "34"]
[EventDate "2017.??.??"]
[EventType "swiss"]
[EventCountry "LAT"]
[SourceTitle "playchess.com"]
[Source "ChessBase"]
[SourceQuality "1"]
[TimeControl "5400+30"]

{[%evp 13,34,0,14,0,20,24,34,6,-1,-7,0,0,3,0,10,0,0,-3,-5,0,0,0,2]} 1. d4 {[%emt 0:00:44]} d5 {[%emt 0:00:04]} 2. Nf3 {[%emt 0:00:09]} Nf6 {[%emt 0:00:05]} 3. e3 {[%emt 0:00:39]} e6 {[%emt 0:00:06]} 4. Bd3 {[%emt 0:00:19]} Be7 {[%emt 0:00:09]} 5. O-O {[%emt 0:00:27]} O-O {[%emt 0:00:08]} 6. Nbd2 {[%emt 0:00:31]} c5 {[%emt 0:00:34]} 7. c4 {[%emt 0:17:03]} Nc6 {[%emt 0:04:46]} 8. dxc5 {[%emt 0:09:29]} Bxc5 {[%emt 0:10:55]} 9. a3 {[%emt 0:00:53] LiveBook: 7 Games D30: Queen's Gambit Declined: Systems without Nc3} dxc4 {[%emt 0:02:36]} 10. Nxc4 {[%emt 0:08:54]} b5 {[%emt 0:22:46]} 11. Nce5 {[%emt 0:00:32]} Nxe5 {[%emt 0:07:34]} 12. Nxe5 {[%emt 0:00:12]} Qd5 {[%emt 0:00:12]} 13. Qf3 $146 {[%emt 0:09:49]} ({Predecessor:} 13. Nf3 Rd8 14. Be2 Qxd1 15. Rxd1 Rxd1+ 16. Bxd1 Bb7 17. b4 Be7 18. Bb2 Rc8 19. Nd4 a6 20. Rc1 {½-½ (20) Donchenko,A (2428)-Gyimesi,Z (2518) Tanta 2000}) 13... Qxf3 {[%emt 0:08:09]} 14. Nxf3 {[%emt 0:00:38]} a6 {[%emt 0:01:25]} 15. Bd2 {[%emt 0:18:18]} Bb7 {[%emt 0:00:30]} 16. Be2 {[%emt 0:00:48]} Rac8 {[%emt 0:04:46]} 17. Ba5 {[%emt 0:10:21]} Nd5 $11 {[%emt 0:05:19]} 1/2-1/2

[Event "LAT-ch Women 2017"]
[Site "Riga"]
[Date "2017.10.08"]
[Round "4"]
[White "Maklakova, Nellija"]
[Black "Krumina, Linda"]
[Result "0-1"]
[ECO "A30"]
[WhiteElo "1800"]
[BlackElo "2096"]
[Annotator "NA RC"]
[PlyCount "92"]
[EventDate "2017.??.??"]
[EventType "swiss"]
[EventCountry "LAT"]
[SourceTitle "playchess.com"]
[Source "ChessBase"]
[SourceQuality "1"]
[TimeControl "5400+30"]

{[%evp 8,92,42,13,17,0,24,25,14,25,16,0,4,29,26,6,-4,-28,-47,-48,-26,-67,-18,-8,-33,-37,-28,-28,-23,-21,-22,-42,-37,-47,-53,-58,-56,-140,-66,-141,-73,-87,-67,-109,-96,-87,-81,-89,-103,-125,-70,-101,-103,-350,-339,-351,32767,32767,-313,-524,-584,-778,-901,-787,-931,-973,-1045,-2324,32767,32767,-1091,32767,-855,32767,-1520,-897,-611,-609,-742,-717,-803,-1058,-1458,-29987,-29990,-29997,-29998]} 1. c4 {[%emt 0:00:00]} c5 {[%emt 0:02:15]} 2. g3 {[%emt 0:00:00]} Nc6 {[%emt 0:00:08]} 3. Bg2 {[%emt 0:00:00]} d6 {[%emt 0:00:10]} 4. Nf3 {[%emt 0:00:32]} g6 {[%emt 0:01:02]} 5. Nc3 {[%emt 0:01:02]} Bg7 {[%emt 0:00:32]} 6. O-O {[%emt 0:00:42]} Nf6 {[%emt 0:04:43]} 7. d4 {[%emt 0:04:32]} cxd4 {[%emt 0:01:24]} 8. Nxd4 {[%emt 0:00:15]} Bd7 {[%emt 0:00:39]} 9. e3 {[%emt 0:06:23] A31: Symmetrical English: 2 Nf3 Nf6 3 d4} h5 {[%emt 0:03:32]} 10. h4 {[%emt 0:01:55] LiveBook: 3 Games} Qc8 {[%emt 0:02:27]} 11. Nxc6 $146 {[%emt 0:05:55]} ({Predecessor:} 11. Re1 O-O 12. b3 Bg4 13. Qd2 Ne5 14. Bb2 Re8 15. Rac1 Bh3 16. Bh1 Nfd7 {0-1 (65) Kjartansson,G (2430)-L'Ami,E (2622) Reykjavik 2013}) 11... bxc6 {[%emt 0:07:33]} 12. Re1 {[%emt 0:07:46]} Ng4 {[%emt 0:02:46]} 13. c5 {[%emt 0:15:41]} d5 {[%emt 0:12:21]} 14. Ne2 {[%emt 0:05:50]} e5 {[%emt 0:09:12]} (14... O-O $17) 15. e4 {[%emt 0:03:52]} d4 {[%emt 0:01:12]} 16. Bg5 {[%emt 0:04:49]} f6 {[%emt 0:02:31]} 17. Bd2 {[%emt 0:00:24]} Be6 {[%emt 0:02:17]} 18. f3 {[%emt 0:01:31]} Nh6 {[%emt 0:01:03]} 19. Qa4 {[%emt 0:02:44]} O-O {[%emt 0:02:59]} 20. Kh2 {[%emt 0:04:49]} Qd7 {[%emt 0:02:42]} 21. Rad1 {[%emt 0:01:23]} Rab8 {[%emt 0:01:41]} 22. Bc1 {[%emt 0:00:23]} (22. b3 $15) 22... Rb7 {[%emt 0:07:49]} 23. Bf1 {[%emt 0:01:26] [#]} ({White should try} 23. b3) 23... Rfb8 {[%emt 0:02:04]} (23... g5 $142 $1 {[%mdl 512]} 24. Bg2 (24. hxg5 fxg5) 24... Nf7) 24. Ng1 {[%emt 0:06:11]} Nf7 {[%emt 0:03:38]} 25. Qa5 {[%emt 0:05:46]} Qe7 {[%emt 0:10:04]} 26. Ba6 {[%emt 0:01:45]} Rd7 {[%emt 0:00:27]} 27. b3 {[%emt 0:01:06]} Bf8 {[%emt 0:00:32]} 28. Ba3 {[%emt 0:01:14]} f5 {[%emt 0:01:28]} 29. exf5 {[%emt 0:00:53]} gxf5 {[%emt 0:00:13]} 30. Qa4 $2 {[%emt 0:00:32]} (30. Nh3 $17) 30... f4 {[%emt 0:02:13]} 31. Qxc6 {[%emt 0:00:52]} fxg3+ {[%emt 0:02:09]} 32. Kxg3 {[%emt 0:00:24]} Bh6 {[%emt 0:05:27]} 33. Bc1 {[%emt 0:03:22]} Kh8 {[%emt 0:01:41]} 34. Qe4 {[%emt 0:04:08]} Rg8+ {[%emt 0:00:37]} 35. Kf2 {[%emt 0:00:21]} Bd5 {[%emt 0:00:39]} 36. Qf5 {[%emt 0:00:52]} Qxh4+ {[%emt 0:00:37]} 37. Ke2 {[%emt 0:00:20]} Rg2+ {[%emt 0:02:29]} 38. Kd3 {[%emt 0:00:15] [#]} e4+ $1 {[%emt 0:02:20]} 39. fxe4 {[%emt 0:01:10]} Qg3+ {[%emt 0:01:11]} 40. Be3 {[%emt 0:01:33]} Bxe3 $19 {[%emt 0:00:15]} (40... Ne5+ $142 41. Qxe5+ Qxe5 42. Bf4 Qxf4 43. exd5 Qg3+ 44. Nf3 Qxf3+ 45. Kc4 Qxd5+ 46. Kb5 Rc7 47. Re8+ Kh7 48. Re7+ Rxe7 49. Rf1 Rxa2 50. Bc8 {[#]} a6+ $1 {[%mdl 512]} 51. Kb6 Qd8+ 52. Kc6 Rc7+ 53. Kb6 Rxc8+ 54. Kb7 Qc7#) 41. Ne2 {[%emt 0:01:02] [#]} Ne5+ {[%emt 0:00:45]} (41... Rxe2 $142 $1 42. Rxe2 {[#]} (42. Kxe2 Be6) 42... Bxb3 $1 {[%mdl 512]} 43. Qf6+ Kh7) 42. Kc2 {[%emt 0:00:14] [#]} d3+ $1 {[%emt 0:00:30]} 43. Bxd3 {[%emt 0:00:14]} Nxd3 {[%emt 0:00:19]} 44. Qxh5+ {[%emt 0:01:10]} Kg7 {[%emt 0:00:11]} 45. Rxd3 {[%emt 0:00:22]} Bxe4 {[%emt 0:00:16]} 46. Kc3 {[%emt 0:01:09]} Qxe1+ {[%emt 0:00:15]} 0-1

[Event "LAT-ch Women 2017"]
[Site "Riga"]
[Date "2017.10.08"]
[Round "4"]
[White "Sarnovska, Eira"]
[Black "Erneste, Inguna"]
[Result "1-0"]
[ECO "A14"]
[WhiteElo "1727"]
[BlackElo "2133"]
[Annotator "RC"]
[PlyCount "76"]
[EventDate "2017.??.??"]
[EventType "swiss"]
[EventCountry "LAT"]
[SourceTitle "playchess.com"]
[Source "ChessBase"]
[SourceQuality "1"]
[TimeControl "5400+30"]

1. Nf3 {[%emt 0:00:00]} d5 {[%emt 0:00:09]} 2. c4 {[%emt 0:00:00]} e6 {[%emt 0:00:25]} 3. g3 {[%emt 0:01:58]} Nf6 {[%emt 0:02:17]} 4. Bg2 {[%emt 0:00:11]} Be7 {[%emt 0:00:48]} 5. O-O {[%emt 0:00:42]} O-O {[%emt 0:00:22]} 6. d3 {[%emt 0:01:12]} c5 {[%emt 0:07:30]} 7. Bd2 {[%emt 0:03:34]} Nc6 {[%emt 0:03:26]} 8. Re1 {[%emt 0:06:34]} d4 {[%emt 0:05:12]} 9. a3 {[%emt 0:06:10]} a5 {[%emt 0:03:37]} 10. a4 {[%emt 0:01:56]} e5 {[%emt 0:03:41]} 11. e4 {[%emt 0:03:14]} dxe3 {[%emt 0:02:08]} 12. Bxe3 {[%emt 0:00:11]} Bf5 {[%emt 0:04:46]} 13. Ra3 {[%emt 0:02:48]} Qd7 {[%emt 0:06:09]} 14. Bc1 {[%emt 0:10:40]} Qc7 {[%emt 0:14:03]} 15. Nc3 {[%emt 0:02:45]} Rad8 {[%emt 0:03:18]} 16. Nb5 {[%emt 0:01:04]} Qb8 {[%emt 0:00:27]} 17. Qe2 {[%emt 0:03:59]} Nd7 {[%emt 0:02:40]} 18. Rb3 {[%emt 0:07:57]} Bf6 {[%emt 0:06:00]} 19. Nd2 {[%emt 0:05:58]} Nb4 {[%emt 0:03:27]} 20. Qf3 {[%emt 0:05:06]} Bg6 {[%emt 0:01:42]} 21. Ne4 {[%emt 0:01:21]} Be7 {[%emt 0:07:21]} 22. h4 {[%emt 0:16:28]} h6 {[%emt 0:03:25]} 23. Qg4 {[%emt 0:05:57]} Kh8 {[%emt 0:00:44]} 24. Be3 {[%emt 0:03:01]} b6 {[%emt 0:00:41]} 25. f4 {[%emt 0:04:30]} exf4 {[%emt 0:00:54]} 26. Bxf4 {[%emt 0:00:17]} Ne5 {[%emt 0:00:32]} 27. Qe2 {[%emt 0:00:42]} f6 {[%emt 0:00:28]} 28. Rd1 {[%emt 0:01:11]} Rfe8 {[%emt 0:01:23]} 29. d4 {[%emt 0:00:36]} cxd4 {[%emt 0:00:19]} 30. Rxd4 {[%emt 0:00:08]} Rxd4 {[%emt 0:00:53]} 31. Nxd4 {[%emt 0:00:04]} Qc8 {[%emt 0:00:19]} 32. Rc3 {[%emt 0:00:50]} Bc5 {[%emt 0:00:38]} 33. Nxc5 {[%emt 0:01:48]} Qxc5 {[%emt 0:03:05]} 34. Be3 {[%emt 0:00:59]} Ned3 {[%emt 0:00:37]} 35. Qg4 {[%emt 0:02:47]} Rxe3 {[%emt 0:01:22]} 36. Qxg6 {[%emt 0:00:45]} Qxd4 {[%emt 0:00:13]} 37. Kh2 {[%emt 0:00:25]} Re2 {[%emt 0:02:38]} 38. h5 {[%emt 0:00:40]} Qf2 {[%emt 0:00:54]} 1-0

[Event "LAT-ch Women 2017"]
[Site "Riga"]
[Date "2017.10.08"]
[Round "4"]
[White "Golsta, Ramona"]
[Black "Osobskaja, Zinaida"]
[Result "0-1"]
[ECO "A40"]
[WhiteElo "1719"]
[BlackElo "1646"]
[Annotator "NA RC"]
[PlyCount "111"]
[EventDate "2017.??.??"]
[EventType "swiss"]
[EventCountry "LAT"]
[SourceTitle "playchess.com"]
[Source "ChessBase"]
[SourceQuality "1"]
[TimeControl "5400+30"]

1. d4 {[%emt 0:00:00]} e6 {[%emt 0:00:23]} 2. Nf3 {[%emt 0:00:00]} d5 {[%emt 0:00:13]} 3. Bf4 {[%emt 0:00:49]} c5 {[%emt 0:00:47]} 4. e3 {[%emt 0:06:59]} Nc6 {[%emt 0:01:09]} 5. c3 {[%emt 0:01:17]} Bd6 {[%emt 0:00:25]} 6. Bg3 {[%emt 0:03:19]} Nge7 {[%emt 0:00:42]} 7. Bd3 {[%emt 0:02:04]} f6 {[%emt 0:00:18]} 8. Nbd2 {[%emt 0:09:59]} a6 {[%emt 0:01:19]} 9. a4 {[%emt 0:01:23]} O-O {[%emt 0:00:43]} 10. O-O {[%emt 0:01:59]} Qc7 {[%emt 0:06:06]} 11. c4 {[%emt 0:12:21]} cxd4 {[%emt 0:01:13]} 12. exd4 {[%emt 0:04:09]} Bxg3 {[%emt 0:03:19]} 13. hxg3 {[%emt 0:00:15]} Nb4 {[%emt 0:00:14]} 14. Qb3 {[%emt 0:03:31]} Nxd3 {[%emt 0:00:12]} 15. Qxd3 {[%emt 0:00:11]} a5 {[%emt 0:01:48]} 16. Rac1 {[%emt 0:03:01]} Qd7 {[%emt 0:00:31]} 17. Qc2 {[%emt 0:03:33]} Nc6 {[%emt 0:00:34]} 18. cxd5 {[%emt 0:03:43]} exd5 {[%emt 0:00:16]} 19. Nb3 {[%emt 0:00:55]} g6 {[%emt 0:03:45]} 20. Nc5 {[%emt 0:00:52]} Qd6 {[%emt 0:00:19]} 21. Rfe1 {[%emt 0:02:13]} Kf7 {[%emt 0:01:42]} 22. Re3 {[%emt 0:05:33]} Re8 {[%emt 0:00:37]} 23. Rxe8 {[%emt 0:08:07]} Kxe8 {[%emt 0:00:37]} 24. Re1+ {[%emt 0:00:24]} Kf7 {[%emt 0:00:14]} 25. Qe2 {[%emt 0:01:44]} Ne7 {[%emt 0:00:34]} 26. Qb5 {[%emt 0:03:02]} b6 {[%emt 0:00:33]} 27. Nd3 {[%emt 0:01:40]} Bd7 {[%emt 0:00:25]} 28. Qb3 {[%emt 0:09:48]} Rc8 {[%emt 0:00:15]} 29. Nf4 {[%emt 0:01:41]} Rc4 {[%emt 0:02:04]} 30. Qe3 {[%emt 0:01:20]} Nf5 {[%emt 0:01:55]} 31. Qd3 {[%emt 0:02:02]} Rxa4 {[%emt 0:00:49]} 32. b3 {[%emt 0:00:59]} Rb4 {[%emt 0:02:44]} 33. Qc3 {[%emt 0:02:58]} Qc6 {[%emt 0:01:27]} 34. Qxc6 {[%emt 0:00:27]} Bxc6 {[%emt 0:00:03]} 35. Ne6 {[%emt 0:01:46]} Bd7 {[%emt 0:02:23]} 36. Nc7 {[%emt 0:00:57]} Rxb3 {[%emt 0:04:52]} 37. Nxd5 {[%emt 0:00:17]} Bc6 {[%emt 0:00:21]} 38. Nc7 {[%emt 0:02:34]} Bxf3 {[%emt 0:01:12]} 39. gxf3 {[%emt 0:00:02]} Nxd4 {[%emt 0:00:16]} 40. Rd1 {[%emt 0:00:27]} Nxf3+ {[%emt 0:00:54]} 41. Kg2 {[%emt 0:00:02]} Ne5 {[%emt 0:00:23]} 42. f4 {[%emt 0:00:16]} Rd3 {[%emt 0:00:38]} 43. Rh1 {[%emt 0:01:14]} Rd2+ {[%emt 0:01:14]} 44. Kh3 {[%emt 0:00:02]} Nd7 {[%emt 0:01:37]} 45. Kg4 {[%emt 0:00:15]} h5+ {[%emt 0:00:23]} 46. Kf3 {[%emt 0:00:07]} Ke7 {[%emt 0:01:43]} 47. Re1+ {[%emt 0:00:43]} Kd6 {[%emt 0:00:18]} 48. Ne8+ {[%emt 0:00:42]} Kd5 {[%emt 0:00:44]} 49. Re7 {[%emt 0:00:49]} Kc5 {[%emt 0:01:33]} 50. Re6 {[%emt 0:00:31]} a4 {[%emt 0:01:02]} 51. Nxf6 {[%emt 0:00:33]} Nxf6 {[%emt 0:00:15]} 52. Rxf6 {[%emt 0:00:03]} Rd6 {[%emt 0:00:15]} 53. Rf8 {[%emt 0:00:13]} Kb4 {[%emt 0:00:33]} 54. Ke4 {[%emt 0:00:16]} b5 {[%emt 0:00:42]} 55. Ke5 {[%emt 0:00:30]} Ra6 {[%emt 0:00:13]} 56. Kd4 0-1

[Event "LAT-ch Women 2017"]
[Site "Riga"]
[Date "2017.10.08"]
[Round "4"]
[White "Ter-Avetisjana, Agnesa Stepania"]
[Black "Golsta, Madara"]
[Result "1/2-1/2"]
[ECO "B78"]
[WhiteElo "1319"]
[BlackElo "1716"]
[Annotator "NA RC"]
[PlyCount "62"]
[EventDate "2017.??.??"]
[EventType "swiss"]
[EventCountry "LAT"]
[SourceTitle "playchess.com"]
[Source "ChessBase"]
[SourceQuality "1"]
[TimeControl "5400+30"]

1. e4 {[%emt 0:00:00]} c5 {[%emt 0:00:32]} 2. Nf3 {[%emt 0:00:00]} d6 {[%emt 0:00:48]} 3. d4 {[%emt 0:00:00]} cxd4 {[%emt 0:00:29]} 4. Nxd4 {[%emt 0:00:00]} Nf6 {[%emt 0:00:51]} 5. Nc3 {[%emt 0:00:00]} g6 {[%emt 0:00:45]} 6. Be3 {[%emt 0:00:03]} Bg7 {[%emt 0:00:24]} 7. f3 {[%emt 0:00:17]} Nc6 {[%emt 0:00:38]} 8. Qd2 {[%emt 0:03:51]} O-O {[%emt 0:00:31]} 9. Bc4 {[%emt 0:00:35]} Bd7 {[%emt 0:00:33]} 10. O-O-O {[%emt 0:00:31]} Rb8 {[%emt 0:01:39]} 11. g4 {[%emt 0:02:26]} b5 {[%emt 0:00:53]} 12. Bb3 {[%emt 0:06:36]} a5 {[%emt 0:05:56]} 13. Ndxb5 {[%emt 0:02:52]} a4 {[%emt 0:01:03]} 14. Bxa4 {[%emt 0:03:58]} Ne5 {[%emt 0:02:02]} 15. Qe2 {[%emt 0:05:01]} Qa5 {[%emt 0:04:20]} 16. Bd4 {[%emt 0:08:21]} Nc6 {[%emt 0:07:05]} 17. Be3 {[%emt 0:05:06]} Rfc8 {[%emt 0:00:55]} 18. Bb3 {[%emt 0:02:02]} Nb4 {[%emt 0:06:18]} 19. Na3 {[%emt 0:03:19]} Rxc3 {[%emt 0:01:09]} 20. bxc3 {[%emt 0:03:16]} Qxa3+ {[%emt 0:05:41]} 21. Kd2 {[%emt 0:01:51]} Nxa2 {[%emt 0:07:45]} 22. Ra1 {[%emt 0:03:05]} Nxe4+ {[%emt 0:00:47]} 23. Kd3 {[%emt 0:06:45]} Nexc3 {[%emt 0:00:33]} 24. Qg2 {[%emt 0:01:48]} Bb5+ {[%emt 0:00:17]} 25. Kd2 {[%emt 0:00:45]} Qb4 {[%emt 0:01:27]} 26. Bxa2 {[%emt 0:03:38]} Nxa2+ {[%emt 0:00:14]} 27. Kd1 {[%emt 0:00:11]} Bxa1 {[%emt 0:00:10]} 28. Bf2 {[%emt 0:01:46]} Nc3+ {[%emt 0:01:40]} 29. Kd2 {[%emt 0:00:25]} Ne4+ {[%emt 0:00:28]} 30. Ke3 {[%emt 0:00:19]} Qd2+ {[%emt 0:00:18]} 31. Kxe4 {[%emt 0:00:22]} d5# {[%emt 0:00:03]} 1/2-1/2

[Event "LAT-ch Women 2017"]
[Site "Riga"]
[Date "2017.10.08"]
[Round "5"]
[White "Erneste, Inguna"]
[Black "Limanovska, Elizabete"]
[Result "1/2-1/2"]
[ECO "B92"]
[WhiteElo "2133"]
[BlackElo "1972"]
[Annotator "ChessBase"]
[PlyCount "86"]
[EventDate "2017.??.??"]
[EventType "swiss"]
[EventCountry "LAT"]
[SourceTitle "playchess.com"]
[Source "ChessBase"]
[SourceQuality "1"]
[TimeControl "5400+30"]

1. e4 {[%emt 0:00:00]} c5 {[%emt 0:00:01]} 2. Nf3 {[%emt 0:00:00]} d6 {[%emt 0:00:05]} 3. d4 {[%emt 0:00:00]} cxd4 {[%emt 0:00:03]} 4. Nxd4 {[%emt 0:00:01]} Nf6 {[%emt 0:00:05]} 5. Nc3 {[%emt 0:00:12]} a6 {[%emt 0:00:04]} 6. Be2 {[%emt 0:01:10]} e5 {[%emt 0:00:06]} 7. Nb3 {[%emt 0:00:05]} Be7 {[%emt 0:00:04]} 8. O-O {[%emt 0:00:29]} O-O {[%emt 0:00:03]} 9. a4 {[%emt 0:00:18]} b6 {[%emt 0:07:50]} 10. f4 {[%emt 0:02:49]} Bb7 {[%emt 0:03:15]} 11. Bf3 {[%emt 0:00:49]} Nbd7 {[%emt 0:05:47]} 12. f5 {[%emt 0:01:58]} b5 {[%emt 0:03:01]} 13. Qe1 {[%emt 0:11:27]} b4 {[%emt 0:04:54]} 14. Nd5 {[%emt 0:00:47]} Nxd5 {[%emt 0:01:20]} 15. exd5 {[%emt 0:00:08]} a5 {[%emt 0:00:52]} 16. Qg3 {[%emt 0:19:56]} Kh8 {[%emt 0:07:39]} 17. Be4 {[%emt 0:10:57]} Nf6 {[%emt 0:01:41]} 18. Qf3 {[%emt 0:01:28]} Qc7 {[%emt 0:03:48]} 19. Be3 {[%emt 0:03:21]} Rfc8 {[%emt 0:06:06]} 20. Rf2 {[%emt 0:01:06]} Bd8 {[%emt 0:01:58]} 21. h3 {[%emt 0:05:55]} Nxe4 {[%emt 0:06:38]} 22. Qxe4 {[%emt 0:00:06]} Qc4 {[%emt 0:00:15]} 23. Qxc4 {[%emt 0:05:11]} Rxc4 {[%emt 0:00:04]} 24. Rd1 {[%emt 0:01:04]} Re4 {[%emt 0:04:04]} 25. Rf3 {[%emt 0:04:34]} Rc4 {[%emt 0:12:46]} 26. Rf2 {[%emt 0:03:23]} Ba6 {[%emt 0:03:43]} 27. Rdd2 {[%emt 0:09:45]} Re4 {[%emt 0:08:29]} 28. Rf3 {[%emt 0:00:55]} Bc4 {[%emt 0:01:31]} 29. Kf2 {[%emt 0:02:40]} Rc8 {[%emt 0:04:25]} 30. g3 {[%emt 0:04:25]} Bxb3 {[%emt 0:02:43]} 31. cxb3 {[%emt 0:00:01]} Rxe3 {[%emt 0:00:11]} 32. Kxe3 {[%emt 0:00:39]} Bg5+ {[%emt 0:00:05]} 33. Ke2 {[%emt 0:00:21]} Bxd2 {[%emt 0:00:05]} 34. Kxd2 {[%emt 0:00:06]} Rc5 {[%emt 0:00:46]} 35. Rd3 {[%emt 0:00:23]} g5 {[%emt 0:02:23]} 36. Ke3 {[%emt 0:03:20]} Kg7 {[%emt 0:00:13]} 37. Rd2 {[%emt 0:00:19]} Kf6 {[%emt 0:00:58]} 38. g4 {[%emt 0:00:38]} Rc1 {[%emt 0:00:38]} 39. Kd3 {[%emt 0:00:14]} Ke7 {[%emt 0:03:27]} 40. Ke4 Kd7 41. f6 Rf1 42. Rc2 Rf4+ 43. Ke3 Rd4 1/2-1/2